[Event "Early-Titled-Tuesday-Blitz-October-03-2023"]
[Site "Chess.com"]
[Date "2023.10.03"]
[Round "10"]
[White "Iball95"]
[Black "vugarrasulov"]
[Result "1/2-1/2"]
[WhiteElo "2778"]
[BlackElo "2941"]
[TimeControl "180+1"]
[EndTime "9:59:33 PDT"]
[Termination "Game drawn by 50-move rule"]

1. e4 {[%clk 0:03:00.9]} 1... a6 {[%clk 0:03:00.9]} 2. d4 {[%clk 0:02:56.3]}
2... e6 {[%clk 0:03:01.3]} 3. Nc3 {[%clk 0:02:54.2]} 3... d5 {[%clk 0:03:00.6]}
4. Bd3 {[%clk 0:02:53.3]} 4... Nf6 {[%clk 0:02:59.4]} 5. Nf3 {[%clk 0:02:51.2]}
5... c5 {[%clk 0:02:59.3]} 6. exd5 {[%clk 0:02:43.4]} 6... exd5 {[%clk
0:02:58.6]} 7. O-O {[%clk 0:02:41.4]} 7... c4 {[%clk 0:02:58.8]} 8. Re1+ {[%clk
0:02:41.6]} 8... Be7 {[%clk 0:02:59.4]} 9. Bf1 {[%clk 0:02:40.6]} 9... O-O
{[%clk 0:03:00]} 10. h3 {[%clk 0:02:40.9]} 10... b5 {[%clk 0:02:59.8]} 11. Ne5
{[%clk 0:02:40.8]} 11... Bb7 {[%clk 0:02:59.7]} 12. Bf4 {[%clk 0:02:40.6]} 12...
Nc6 {[%clk 0:02:58.4]} 13. g4 {[%clk 0:02:37.3]} 13... Nxe5 {[%clk 0:02:53.9]}
14. dxe5 {[%clk 0:02:29.1]} 14... Ne8 {[%clk 0:02:52.5]} 15. Bg2 {[%clk
0:02:26.2]} 15... Nc7 {[%clk 0:02:53.1]} 16. Be3 {[%clk 0:02:15.7]} 16... Qd7
{[%clk 0:02:49.4]} 17. Ne2 {[%clk 0:02:12]} 17... Rad8 {[%clk 0:02:40.6]} 18.
Nd4 {[%clk 0:02:08.4]} 18... Ne6 {[%clk 0:02:40.9]} 19. Qd2 {[%clk 0:02:04.9]}
19... Nxd4 {[%clk 0:02:29.5]} 20. Bxd4 {[%clk 0:02:05.8]} 20... h5 {[%clk
0:02:29.3]} 21. gxh5 {[%clk 0:02:01.8]} 21... Qf5 {[%clk 0:02:29.5]} 22. Qe2
{[%clk 0:01:55.6]} 22... Bc8 {[%clk 0:02:23.5]} 23. Rad1 {[%clk 0:01:50.2]}
23... Be6 {[%clk 0:02:22.5]} 24. c3 {[%clk 0:01:30.1]} 24... Kh7 {[%clk
0:02:17.4]} 25. Qf3 {[%clk 0:01:20.4]} 25... Qxf3 {[%clk 0:02:09.1]} 26. Bxf3
{[%clk 0:01:21.3]} 26... Rd7 {[%clk 0:01:53.9]} 27. Bg4 {[%clk 0:01:17.1]} 27...
Bg5 {[%clk 0:01:48.6]} 28. Be3 {[%clk 0:01:12.1]} 28... Bxe3 {[%clk 0:01:47]}
29. Rxe3 {[%clk 0:01:13]} 29... Kh6 {[%clk 0:01:45.6]} 30. f4 {[%clk 0:01:10.2]}
30... Rdd8 {[%clk 0:01:27.5]} 31. Kf2 {[%clk 0:00:58]} 31... Rfe8 {[%clk
0:01:27.3]} 32. Kg3 {[%clk 0:00:56.3]} 32... a5 {[%clk 0:01:25.9]} 33. Rd2
{[%clk 0:00:52.5]} 33... b4 {[%clk 0:01:25.4]} 34. Re1 {[%clk 0:00:47.4]} 34...
a4 {[%clk 0:01:20.8]} 35. a3 {[%clk 0:00:38.2]} 35... bxc3 {[%clk 0:01:19.4]}
36. bxc3 {[%clk 0:00:39.1]} 36... Rb8 {[%clk 0:01:06.9]} 37. f5 {[%clk 0:00:39]}
37... Bc8 {[%clk 0:01:07.3]} 38. Rxd5 {[%clk 0:00:39.5]} 38... Rb3 {[%clk
0:01:07.8]} 39. Re3 {[%clk 0:00:34.7]} 39... Rxa3 {[%clk 0:01:08]} 40. e6 {[%clk
0:00:26.2]} 40... fxe6 {[%clk 0:01:06.5]} 41. fxe6 {[%clk 0:00:27.1]} 41... Rb3
{[%clk 0:00:49.3]} 42. e7 {[%clk 0:00:23.1]} 42... Bxg4 {[%clk 0:00:49.5]} 43.
hxg4 {[%clk 0:00:24]} 43... Rb7 {[%clk 0:00:47.9]} 44. Re6+ {[%clk 0:00:14.4]}
44... Kh7 {[%clk 0:00:47.6]} 45. Rc5 {[%clk 0:00:05]} 45... Rbxe7 {[%clk
0:00:46.1]} 46. Rxe7 {[%clk 0:00:05.9]} 46... Rxe7 {[%clk 0:00:47]} 47. Rxc4
{[%clk 0:00:05.2]} 47... Ra7 {[%clk 0:00:47.6]} 48. Rb4 {[%clk 0:00:05.2]} 48...
a3 {[%clk 0:00:45.7]} 49. Rb1 {[%clk 0:00:05.4]} 49... Kh6 {[%clk 0:00:46.4]}
50. Kf4 {[%clk 0:00:04.1]} 50... Ra4+ {[%clk 0:00:44.5]} 51. Kf5 {[%clk
0:00:04.6]} 51... Ra5+ {[%clk 0:00:44.7]} 52. Kf4 {[%clk 0:00:04.5]} 52... Ra4+
{[%clk 0:00:44.1]} 53. Kf5 {[%clk 0:00:03.3]} 53... a2 {[%clk 0:00:44.1]} 54.
Ra1 {[%clk 0:00:02.8]} 54... Ra5+ {[%clk 0:00:41.7]} 55. Kf4 {[%clk 0:00:02.6]}
55... Kh7 {[%clk 0:00:39.6]} 56. c4 {[%clk 0:00:02.9]} 56... Kg8 {[%clk
0:00:39.8]} 57. g5 {[%clk 0:00:02.7]} 57... Kf7 {[%clk 0:00:40.2]} 58. Kg4
{[%clk 0:00:02.8]} 58... Ra4 {[%clk 0:00:39.7]} 59. Kf5 {[%clk 0:00:02.9]} 59...
Ra5+ {[%clk 0:00:40.3]} 60. Kg4 {[%clk 0:00:03.4]} 60... Ke6 {[%clk 0:00:40.6]}
61. h6 {[%clk 0:00:03.5]} 61... gxh6 {[%clk 0:00:41.3]} 62. gxh6 {[%clk
0:00:04.4]} 62... Kf6 {[%clk 0:00:42]} 63. h7 {[%clk 0:00:03.7]} 63... Kg7
{[%clk 0:00:42.3]} 64. c5 {[%clk 0:00:03.3]} 64... Kxh7 {[%clk 0:00:42.1]} 65.
c6 {[%clk 0:00:03.8]} 65... Kg7 {[%clk 0:00:42.3]} 66. c7 {[%clk 0:00:04.4]}
66... Rc5 {[%clk 0:00:42.9]} 67. Rxa2 {[%clk 0:00:04.5]} 67... Rc4+ {[%clk
0:00:43.3]} 68. Kg5 {[%clk 0:00:04.4]} 68... Rxc7 {[%clk 0:00:44.2]} 69. Ra5
{[%clk 0:00:04.6]} 69... Rd7 {[%clk 0:00:43.9]} 70. Rf5 {[%clk 0:00:05.5]} 70...
Rd1 {[%clk 0:00:43.6]} 71. Ra5 {[%clk 0:00:05.9]} 71... Rg1+ {[%clk 0:00:43.8]}
72. Kf5 {[%clk 0:00:06.4]} 72... Rf1+ {[%clk 0:00:43.6]} 73. Kg5 {[%clk
0:00:07]} 73... Rg1+ {[%clk 0:00:44.1]} 74. Kf5 {[%clk 0:00:07.5]} 74... Rh1
{[%clk 0:00:44.8]} 75. Kg5 {[%clk 0:00:07.8]} 75... Rb1 {[%clk 0:00:44.1]} 76.
Ra7+ {[%clk 0:00:07.6]} 76... Kf8 {[%clk 0:00:44.9]} 77. Kf6 {[%clk 0:00:08.2]}
77... Rb6+ {[%clk 0:00:44.3]} 78. Kf5 {[%clk 0:00:08.3]} 78... Rh6 {[%clk
0:00:44.3]} 79. Ra8+ {[%clk 0:00:08.5]} 79... Ke7 {[%clk 0:00:44.4]} 80. Ra7+
{[%clk 0:00:09.4]} 80... Kd8 {[%clk 0:00:45.1]} 81. Rg7 {[%clk 0:00:09.6]} 81...
Ke8 {[%clk 0:00:44.6]} 82. Ra7 {[%clk 0:00:09.8]} 82... Rb6 {[%clk 0:00:44.4]}
83. Ra8+ {[%clk 0:00:09.1]} 83... Kd7 {[%clk 0:00:44.3]} 84. Ra7+ {[%clk
0:00:09.7]} 84... Kd6 {[%clk 0:00:44.9]} 85. Ra5 {[%clk 0:00:09.1]} 85... Rb1
{[%clk 0:00:44.8]} 86. Ra2 {[%clk 0:00:08.5]} 86... Rf1+ {[%clk 0:00:44.6]} 87.
Ke4 {[%clk 0:00:09.1]} 87... Re1+ {[%clk 0:00:45]} 88. Kf5 {[%clk 0:00:09.8]}
88... Kd5 {[%clk 0:00:45]} 89. Rd2+ {[%clk 0:00:09.2]} 89... Kc4 {[%clk
0:00:45.7]} 90. Rd8 {[%clk 0:00:09.9]} 90... Rf1+ {[%clk 0:00:45]} 91. Ke5
{[%clk 0:00:10.2]} 91... Re1+ {[%clk 0:00:44.7]} 92. Kf4 {[%clk 0:00:10.9]}
92... Kc5 {[%clk 0:00:44.4]} 93. Rc8+ {[%clk 0:00:10.3]} 93... Kd6 {[%clk
0:00:45]} 94. Rd8+ {[%clk 0:00:10.9]} 94... Ke7 {[%clk 0:00:45.5]} 95. Ra8
{[%clk 0:00:11.1]} 95... Rb1 {[%clk 0:00:45.1]} 96. Ke5 {[%clk 0:00:11]} 96...
Rb5+ {[%clk 0:00:44.6]} 97. Ke4 {[%clk 0:00:11.6]} 97... Rh5 {[%clk 0:00:44.5]}
98. Ra7+ {[%clk 0:00:11.6]} 98... Kd6 {[%clk 0:00:45.1]} 99. Ra6+ {[%clk
0:00:12.5]} 99... Kc7 {[%clk 0:00:45.7]} 100. Ra7+ {[%clk 0:00:12.9]} 100... Kc6
{[%clk 0:00:45.9]} 101. Rf7 {[%clk 0:00:13.8]} 101... Kd6 {[%clk 0:00:44.8]}
102. Rf6+ {[%clk 0:00:13.3]} 102... Ke7 {[%clk 0:00:45.5]} 103. Ra6 {[%clk
0:00:13.4]} 103... Rh4+ {[%clk 0:00:44.9]} 104. Ke5 {[%clk 0:00:13.2]} 104...
Rh5+ {[%clk 0:00:45.8]} 105. Ke4 {[%clk 0:00:13.5]} 105... Rh1 {[%clk
0:00:46.7]} 106. Ke5 {[%clk 0:00:13.7]} 106... Re1+ {[%clk 0:00:46]} 107. Kd5
{[%clk 0:00:14.2]} 107... Re2 {[%clk 0:00:46.3]} 108. Rb6 {[%clk 0:00:13.7]}
108... Kf7 {[%clk 0:00:46.4]} 109. Ra6 {[%clk 0:00:13.3]} 109... Rd2+ {[%clk
0:00:47]} 110. Ke5 {[%clk 0:00:13.3]} 110... Rb2 {[%clk 0:00:47.9]} 111. Kf5
{[%clk 0:00:13.1]} 111... Rb5+ {[%clk 0:00:47.3]} 112. Ke4 {[%clk 0:00:13.7]}
112... Rc5 {[%clk 0:00:48.1]} 113. Kf4 {[%clk 0:00:13.9]} 113... Ke7 {[%clk
0:00:47.7]} 114. Ke4 {[%clk 0:00:14.3]} 114... Kd7 {[%clk 0:00:48.3]} 115. Kd4
{[%clk 0:00:15]} 115... Rh5 {[%clk 0:00:48]} 116. Rg6 {[%clk 0:00:15.3]} 116...
Kc7 {[%clk 0:00:48.5]} 117. Ke4 {[%clk 0:00:15.5]} 117... Kd7 {[%clk 0:00:48.8]}
118. Kd4 {[%clk 0:00:16]} 118... Ke7 {[%clk 0:00:49.3]} 1/2-1/2

[Event "Early-Titled-Tuesday-Blitz-October-03-2023"]
[Site "Chess.com"]
[Date "2023.10.03"]
[Round "10"]
[White "borocotoajua"]
[Black "JoakimVonAnd"]
[Result "1/2-1/2"]
[WhiteElo "2614"]
[BlackElo "2731"]
[TimeControl "180+1"]
[EndTime "10:00:08 PDT"]
[Termination "Game drawn by 50-move rule"]

1. d4 {[%clk 0:02:58.7]} 1... Nf6 {[%clk 0:02:59.8]} 2. Nf3 {[%clk 0:02:59.1]}
2... c5 {[%clk 0:02:59.7]} 3. d5 {[%clk 0:02:50.7]} 3... e6 {[%clk 0:03:00]} 4.
c4 {[%clk 0:02:50.1]} 4... exd5 {[%clk 0:03:00.4]} 5. cxd5 {[%clk 0:02:51]} 5...
d6 {[%clk 0:03:00.9]} 6. Nc3 {[%clk 0:02:51.4]} 6... g6 {[%clk 0:03:01.4]} 7. e4
{[%clk 0:02:51.3]} 7... a6 {[%clk 0:03:00.3]} 8. a4 {[%clk 0:02:50.2]} 8... Bg4
{[%clk 0:03:00.5]} 9. Be2 {[%clk 0:02:50.6]} 9... Bxf3 {[%clk 0:02:59.9]} 10.
Bxf3 {[%clk 0:02:51.5]} 10... Bg7 {[%clk 0:03:00.2]} 11. O-O {[%clk 0:02:48]}
11... Nbd7 {[%clk 0:03:00.3]} 12. g3 {[%clk 0:02:43]} 12... O-O {[%clk
0:02:59.6]} 13. Re1 {[%clk 0:02:42.4]} 13... Re8 {[%clk 0:02:59.6]} 14. Bg2
{[%clk 0:02:37.6]} 14... Rb8 {[%clk 0:02:59.8]} 15. a5 {[%clk 0:02:35.5]} 15...
b5 {[%clk 0:02:45.7]} 16. axb6 {[%clk 0:02:35.3]} 16... Rxb6 {[%clk 0:02:45.9]}
17. Bf1 {[%clk 0:02:26.8]} 17... Qc8 {[%clk 0:02:10.7]} 18. Qa4 {[%clk
0:02:19.7]} 18... Ne5 {[%clk 0:02:09.3]} 19. Be2 {[%clk 0:02:18.4]} 19... Rb4
{[%clk 0:02:06]} 20. Qxa6 {[%clk 0:02:09.2]} 20... Nxe4 {[%clk 0:02:06.1]} 21.
Qxc8 {[%clk 0:01:59.9]} 21... Rxc8 {[%clk 0:02:04.5]} 22. Nxe4 {[%clk
0:01:29.9]} 22... Rxe4 {[%clk 0:02:04]} 23. Bf4 {[%clk 0:01:30.6]} 23... Rb8
{[%clk 0:01:59.7]} 24. Rab1 {[%clk 0:00:38.5]} 24... h5 {[%clk 0:01:45.1]} 25.
b3 {[%clk 0:00:37.8]} 25... Reb4 {[%clk 0:01:41.3]} 26. Bxe5 {[%clk 0:00:35.7]}
26... Bxe5 {[%clk 0:01:39.4]} 27. Bc4 {[%clk 0:00:35.9]} 27... Kg7 {[%clk
0:01:36.7]} 28. Kg2 {[%clk 0:00:36.3]} 28... Bc3 {[%clk 0:01:34.2]} 29. Rec1
{[%clk 0:00:34.6]} 29... Bd4 {[%clk 0:01:33.5]} 30. Rd1 {[%clk 0:00:32.6]} 30...
Ra8 {[%clk 0:01:30.2]} 31. Re1 {[%clk 0:00:20.2]} 31... h4 {[%clk 0:01:16.9]}
32. Re2 {[%clk 0:00:19.1]} 32... Rh8 {[%clk 0:01:14.3]} 33. h3 {[%clk
0:00:15.9]} 33... hxg3 {[%clk 0:01:13.5]} 34. fxg3 {[%clk 0:00:16.8]} 34... Be5
{[%clk 0:01:12.8]} 35. Ra2 {[%clk 0:00:15.5]} 35... Rhb8 {[%clk 0:01:12.4]} 36.
Rf1 {[%clk 0:00:15.3]} 36... R4b7 {[%clk 0:01:09.4]} 37. Raf2 {[%clk 0:00:14.9]}
37... Ra8 {[%clk 0:01:08.1]} 38. Re2 {[%clk 0:00:15.1]} 38... Ra3 {[%clk
0:01:06.5]} 39. Rf3 {[%clk 0:00:14.2]} 39... Rba7 {[%clk 0:01:05.1]} 40. Ref2
{[%clk 0:00:13.8]} 40... Ra1 {[%clk 0:00:58]} 41. Rf1 {[%clk 0:00:13.1]} 41...
R1a2+ {[%clk 0:00:57.1]} 42. R1f2 {[%clk 0:00:13.6]} 42... R2a3 {[%clk
0:00:51.4]} 43. g4 {[%clk 0:00:11.9]} 43... Bd4 {[%clk 0:00:48.8]} 44. Rf1
{[%clk 0:00:09.9]} 44... Ra2+ {[%clk 0:00:48.9]} 45. Kh1 {[%clk 0:00:10.6]}
45... Rd2 {[%clk 0:00:43.4]} 46. Bb5 {[%clk 0:00:09.1]} 46... Re7 {[%clk
0:00:39.3]} 47. Bc4 {[%clk 0:00:08.2]} 47... Kg8 {[%clk 0:00:39.5]} 48. h4
{[%clk 0:00:06.7]} 48... Ra7 {[%clk 0:00:39.3]} 49. h5 {[%clk 0:00:02.6]} 49...
Raa2 {[%clk 0:00:39.3]} 50. Rh3 {[%clk 0:00:02.9]} 50... Be5 {[%clk 0:00:32.4]}
51. b4 {[%clk 0:00:02.3]} 51... Rh2+ {[%clk 0:00:31.4]} 52. Rxh2 {[%clk
0:00:03]} 52... Rxh2+ {[%clk 0:00:32]} 53. Kg1 {[%clk 0:00:03.9]} 53... cxb4
{[%clk 0:00:32.6]} 54. hxg6 {[%clk 0:00:04.8]} 54... fxg6 {[%clk 0:00:31.9]} 55.
Rf6 {[%clk 0:00:05.6]} 55... Kg7 {[%clk 0:00:28.2]} 56. Re6 {[%clk 0:00:06.1]}
56... Rc2 {[%clk 0:00:26.6]} 57. Re7+ {[%clk 0:00:06.3]} 57... Kf6 {[%clk
0:00:26]} 58. Rc7 {[%clk 0:00:05.9]} 58... b3 {[%clk 0:00:24.2]} 59. Rc6 {[%clk
0:00:03.1]} 59... b2 {[%clk 0:00:23.6]} 60. Bd3 {[%clk 0:00:04]} 60... Rd2
{[%clk 0:00:19.9]} 61. Be4 {[%clk 0:00:03.9]} 61... Re2 {[%clk 0:00:19.1]} 62.
Bd3 {[%clk 0:00:03.5]} 62... Rd2 {[%clk 0:00:19.6]} 63. Be4 {[%clk 0:00:03.8]}
63... Kg5 {[%clk 0:00:20.5]} 64. Kf1 {[%clk 0:00:03]} 64... Rd4 {[%clk
0:00:18.9]} 65. Bc2 {[%clk 0:00:02.6]} 65... Rxd5 {[%clk 0:00:19]} 66. Ke2
{[%clk 0:00:03.1]} 66... Rc5 {[%clk 0:00:18.9]} 67. Rxc5 {[%clk 0:00:03.3]}
67... dxc5 {[%clk 0:00:19.8]} 68. Kf3 {[%clk 0:00:03.6]} 68... Bd4 {[%clk
0:00:19.6]} 69. Ke4 {[%clk 0:00:04.5]} 69... Kh4 {[%clk 0:00:19.2]} 70. Kd5
{[%clk 0:00:04.6]} 70... g5 {[%clk 0:00:20.1]} 71. Bf5 {[%clk 0:00:04.3]} 71...
Kh3 {[%clk 0:00:19.8]} 72. Kc4 {[%clk 0:00:04.5]} 72... Kg3 {[%clk 0:00:20.3]}
73. Kb3 {[%clk 0:00:05]} 73... Kf4 {[%clk 0:00:21]} 74. Kc2 {[%clk 0:00:05.2]}
74... Ke3 {[%clk 0:00:21.2]} 75. Be6 {[%clk 0:00:05.4]} 75... Kf4 {[%clk
0:00:20.5]} 76. Bf5 {[%clk 0:00:06.3]} 76... c4 {[%clk 0:00:20.5]} 77. Be6
{[%clk 0:00:06.7]} 77... Ke5 {[%clk 0:00:21]} 78. Bf5 {[%clk 0:00:07.6]} 78...
Kf4 {[%clk 0:00:21.4]} 79. Be6 {[%clk 0:00:07.6]} 79... Bf6 {[%clk 0:00:22]} 80.
Bf5 {[%clk 0:00:08]} 80... Kf3 {[%clk 0:00:22]} 81. Be6 {[%clk 0:00:08]} 81...
c3 {[%clk 0:00:20.6]} 82. Bf5 {[%clk 0:00:08.1]} 82... Kf4 {[%clk 0:00:20.9]}
83. Be6 {[%clk 0:00:08.5]} 83... Ke5 {[%clk 0:00:21.7]} 84. Bc8 {[%clk
0:00:08.7]} 84... Kd4 {[%clk 0:00:22.2]} 85. Bf5 {[%clk 0:00:09.6]} 85... Kc4
{[%clk 0:00:22.4]} 86. Be6+ {[%clk 0:00:09.5]} 86... Kb4 {[%clk 0:00:23.3]} 87.
Bf5 {[%clk 0:00:10.4]} 87... Kc4 {[%clk 0:00:23.3]} 88. Be6+ {[%clk 0:00:10.3]}
88... Kb4 {[%clk 0:00:23.9]} 89. Bf5 {[%clk 0:00:09.1]} 89... Ka4 {[%clk
0:00:24.2]} 90. Kb1 {[%clk 0:00:08.7]} 90... Ka3 {[%clk 0:00:23.4]} 91. Bc2
{[%clk 0:00:09.1]} 91... Kb4 {[%clk 0:00:23.3]} 92. Bf5 {[%clk 0:00:08.8]} 92...
Kb3 {[%clk 0:00:23.7]} 93. Bc2+ {[%clk 0:00:08.8]} 93... Kc4 {[%clk 0:00:23.9]}
94. Bf5 {[%clk 0:00:09.7]} 94... Kd4 {[%clk 0:00:23.8]} 95. Kc2 {[%clk
0:00:09.1]} 95... Ke3 {[%clk 0:00:24.3]} 96. Bg6 {[%clk 0:00:07.1]} 96... Ke2
{[%clk 0:00:24.6]} 97. Bf5 {[%clk 0:00:07.4]} 97... Ke1 {[%clk 0:00:25]} 98. Bg6
{[%clk 0:00:06.8]} 98... Ke2 {[%clk 0:00:24.1]} 99. Bf5 {[%clk 0:00:07.3]} 99...
Kf2 {[%clk 0:00:24.7]} 100. Bg6 {[%clk 0:00:07.5]} 100... Ke3 {[%clk 0:00:24.5]}
101. Bf5 {[%clk 0:00:07.8]} 101... Kf3 {[%clk 0:00:25.2]} 102. Be6 {[%clk
0:00:07.7]} 102... Kf4 {[%clk 0:00:25.2]} 103. Bf5 {[%clk 0:00:07.7]} 103... Ke3
{[%clk 0:00:25.7]} 104. Bd7 {[%clk 0:00:06.6]} 104... Kf3 {[%clk 0:00:24.8]}
105. Bf5 {[%clk 0:00:06.8]} 105... Ke2 {[%clk 0:00:25.3]} 106. Be6 {[%clk
0:00:05.6]} 106... Ke3 {[%clk 0:00:24.3]} 107. Bf5 {[%clk 0:00:05.8]} 107... Kd4
{[%clk 0:00:25.1]} 108. Be6 {[%clk 0:00:05.8]} 108... Kc5 {[%clk 0:00:25.6]}
109. Bf5 {[%clk 0:00:06]} 109... Kb4 {[%clk 0:00:23.6]} 110. Be6 {[%clk
0:00:05.8]} 110... Be5 {[%clk 0:00:23.3]} 111. Bf5 {[%clk 0:00:05.8]} 111... Bf4
{[%clk 0:00:23.7]} 112. Be6 {[%clk 0:00:05.8]} 112... Bd2 {[%clk 0:00:24.5]}
113. Bf5 {[%clk 0:00:05.6]} 113... Ka3 {[%clk 0:00:25.1]} 114. Be6 {[%clk
0:00:05]} 114... Be1 {[%clk 0:00:23.7]} 115. Bd5 {[%clk 0:00:03.5]} 115... Bd2
{[%clk 0:00:23.7]} 116. Be6 {[%clk 0:00:03.7]} 116... Be1 {[%clk 0:00:23.7]}
117. Bd5 {[%clk 0:00:04.3]} 117... Bg3 {[%clk 0:00:23.9]} 118. Be6 {[%clk
0:00:04.6]} 118... Be5 {[%clk 0:00:24.1]} 119. Bd5 {[%clk 0:00:05]} 119... Bd4
{[%clk 0:00:24.3]} 120. Be6 {[%clk 0:00:05.3]} 120... Kb4 {[%clk 0:00:24.8]}
121. Bd5 {[%clk 0:00:05.2]} 121... Be5 {[%clk 0:00:25.6]} 122. Be6 {[%clk
0:00:05.5]} 122... Kc5 {[%clk 0:00:26.4]} 123. Bf5 {[%clk 0:00:05.8]} 123... Kd4
{[%clk 0:00:27.1]} 124. Be6 {[%clk 0:00:05.4]} 124... Ke3 {[%clk 0:00:27.9]}
125. Bf5 {[%clk 0:00:05.6]} 125... Kf4 {[%clk 0:00:28.8]} 126. Bd7 {[%clk
0:00:05.5]} 126... Ke3 {[%clk 0:00:29.4]} 127. Bf5 {[%clk 0:00:05.5]} 127... Ke2
{[%clk 0:00:29.1]} 128. Kb1 {[%clk 0:00:04.6]} 128... Kd2 {[%clk 0:00:28.3]}
129. Bg6 {[%clk 0:00:04.8]} 129... Bd4 {[%clk 0:00:28.3]} 130. Bf5 {[%clk
0:00:05]} 130... Bf6 {[%clk 0:00:28.5]} 131. Bg6 {[%clk 0:00:05.3]} 131... Kd1
{[%clk 0:00:28.8]} 1/2-1/2